[Event "Early-Titled-Tuesday-Blitz-November-28-2023"]
[Site "Chess.com"]
[Date "2023.11.28"]
[Round "4"]
[White "Rumpel-VK"]
[Black "suyu28"]
[Result "1-0"]
[WhiteElo "2563"]
[BlackElo "2728"]
[TimeControl "180+1"]
[EndTime "8:39:49 PST"]
[Termination "Rumpel-VK won by resignation"]

1. d4 {[%clk 0:02:54.6]} 1... Nf6 {[%clk 0:02:47.2]} 2. c4 {[%clk 0:02:50.6]}
2... e6 {[%clk 0:02:47.6]} 3. Nf3 {[%clk 0:02:49.1]} 3... d5 {[%clk 0:02:46.7]}
4. Nc3 {[%clk 0:02:48.2]} 4... c6 {[%clk 0:02:46.8]} 5. e3 {[%clk 0:02:46.5]}
5... Nbd7 {[%clk 0:02:47.2]} 6. Qc2 {[%clk 0:02:46.2]} 6... Bd6 {[%clk
0:02:47.5]} 7. b3 {[%clk 0:02:44.8]} 7... O-O {[%clk 0:02:47.2]} 8. Be2 {[%clk
0:02:44.4]} 8... b6 {[%clk 0:02:47.7]} 9. Bb2 {[%clk 0:02:44.2]} 9... Bb7 {[%clk
0:02:48.4]} 10. O-O {[%clk 0:02:44.7]} 10... Rc8 {[%clk 0:02:47.6]} 11. Rad1
{[%clk 0:02:44.6]} 11... Qe7 {[%clk 0:02:48]} 12. Rfe1 {[%clk 0:02:44.4]} 12...
Rfe8 {[%clk 0:02:45.5]} 13. Qb1 {[%clk 0:02:44.1]} 13... Nf8 {[%clk 0:02:45.9]}
14. e4 {[%clk 0:02:43.1]} 14... dxe4 {[%clk 0:02:45.8]} 15. Nxe4 {[%clk
0:02:44]} 15... Nxe4 {[%clk 0:02:46.7]} 16. Qxe4 {[%clk 0:02:44.6]} 16... c5
{[%clk 0:02:47.2]} 17. Qe3 {[%clk 0:02:42.4]} 17... Ng6 {[%clk 0:02:44.3]} 18.
g3 {[%clk 0:02:35.7]} 18... cxd4 {[%clk 0:02:31.7]} 19. Qxd4 {[%clk 0:02:30.6]}
19... f6 {[%clk 0:00:49.9]} 20. Qxd6 {[%clk 0:02:23.9]} 20... Qf7 {[%clk
0:00:50]} 21. Qd7 {[%clk 0:02:14.4]} 21... Re7 {[%clk 0:00:49.7]} 22. Qd3 {[%clk
0:02:10.3]} 22... e5 {[%clk 0:00:49.1]} 23. Qf5 {[%clk 0:01:59.6]} 23... Rc5
{[%clk 0:00:47.1]} 24. Rd8+ {[%clk 0:01:43.4]} 24... Nf8 {[%clk 0:00:46.4]} 25.
Ba3 {[%clk 0:01:29]} 25... g6 {[%clk 0:00:45]} 26. Qh3 {[%clk 0:01:19.6]} 26...
e4 {[%clk 0:00:41.6]} 27. Bxc5 {[%clk 0:01:17.5]} 27... exf3 {[%clk 0:00:41.7]}
28. Bxe7 {[%clk 0:01:02.9]} 28... Qxe7 {[%clk 0:00:42.2]} 29. Rd2 {[%clk
0:00:21.1]} 29... Qb4 {[%clk 0:00:38.1]} 30. Rdd1 {[%clk 0:00:17.8]} 30... fxe2
{[%clk 0:00:37.8]} 31. Rxe2 {[%clk 0:00:18.2]} 31... Qc3 {[%clk 0:00:38.7]} 32.
Re3 {[%clk 0:00:11]} 32... Qc2 {[%clk 0:00:33.3]} 33. Rde1 {[%clk 0:00:11.2]}
33... f5 {[%clk 0:00:27.8]} 34. Re7 {[%clk 0:00:10.6]} 34... Be4 {[%clk
0:00:18.8]} 35. Qh6 {[%clk 0:00:10.2]} 35... Qc3 {[%clk 0:00:18.7]} 36. R1xe4
{[%clk 0:00:09.2]} 36... fxe4 {[%clk 0:00:18.4]} 37. Re8 {[%clk 0:00:08.8]}
37... Qa1+ {[%clk 0:00:15.7]} 38. Kg2 {[%clk 0:00:08.5]} 38... Qf6 {[%clk
0:00:16.6]} 39. Rxe4 {[%clk 0:00:08.5]} 39... Ne6 {[%clk 0:00:15.6]} 40. Qe3
{[%clk 0:00:07.4]} 40... Ng5 {[%clk 0:00:15.8]} 41. Re8+ {[%clk 0:00:06.8]}
41... Kf7 {[%clk 0:00:16.2]} 42. Rc8 {[%clk 0:00:05.8]} 42... Qf5 {[%clk
0:00:13.4]} 43. Qf4 {[%clk 0:00:05.5]} 43... Ne6 {[%clk 0:00:08.9]} 44. Qxf5+
{[%clk 0:00:05.4]} 44... gxf5 {[%clk 0:00:09.8]} 45. Ra8 {[%clk 0:00:05.9]}
45... a5 {[%clk 0:00:09.8]} 46. Rb8 {[%clk 0:00:06.2]} 46... Nc5 {[%clk
0:00:08.3]} 47. Rxb6 {[%clk 0:00:06.2]} 47... Ne4 {[%clk 0:00:08.9]} 48. Rb5
{[%clk 0:00:06.2]} 48... Nc3 {[%clk 0:00:09.2]} 49. Rxf5+ {[%clk 0:00:06.2]} 1-0

[Event "Early-Titled-Tuesday-Blitz-November-28-2023"]
[Site "Chess.com"]
[Date "2023.11.28"]
[Round "4"]
[White "secretsuperstar7"]
[Black "tylityli"]
[Result "0-1"]
[WhiteElo "2452"]
[BlackElo "2270"]
[TimeControl "180+1"]
[EndTime "8:39:49 PST"]
[Termination "tylityli won on time"]

1. c4 {[%clk 0:03:00.9]} 1... c5 {[%clk 0:02:58.7]} 2. Nc3 {[%clk 0:02:59.3]}
2... Nf6 {[%clk 0:02:58.2]} 3. g3 {[%clk 0:02:59.4]} 3... d5 {[%clk 0:02:52.6]}
4. cxd5 {[%clk 0:02:59.1]} 4... Nxd5 {[%clk 0:02:53.5]} 5. Bg2 {[%clk
0:02:59.1]} 5... Nc7 {[%clk 0:02:52.6]} 6. Nf3 {[%clk 0:02:58.3]} 6... Nc6
{[%clk 0:02:50.3]} 7. d3 {[%clk 0:02:56.2]} 7... e5 {[%clk 0:02:50.4]} 8. O-O
{[%clk 0:02:48.9]} 8... Be7 {[%clk 0:02:50.2]} 9. Be3 {[%clk 0:02:40]} 9... Bd7
{[%clk 0:02:34.2]} 10. Rc1 {[%clk 0:02:29.4]} 10... O-O {[%clk 0:02:29.3]} 11.
Nd2 {[%clk 0:02:07.8]} 11... Rc8 {[%clk 0:02:07.8]} 12. Nce4 {[%clk 0:01:47.9]}
12... b6 {[%clk 0:02:04.3]} 13. Nc4 {[%clk 0:01:45.1]} 13... Nd5 {[%clk
0:01:39.6]} 14. Ned6 {[%clk 0:01:23.3]} 14... Nxe3 {[%clk 0:01:37.6]} 15. fxe3
{[%clk 0:01:21.5]} 15... Bxd6 {[%clk 0:01:34]} 16. Nxd6 {[%clk 0:01:21]} 16...
Rc7 {[%clk 0:01:34.1]} 17. Nc4 {[%clk 0:00:35.3]} 17... Qg5 {[%clk 0:01:27.4]}
18. e4 {[%clk 0:00:23.8]} 18... Nd4 {[%clk 0:01:10.3]} 19. Kh1 {[%clk
0:00:14.3]} 19... Bg4 {[%clk 0:01:07.7]} 20. Bf3 {[%clk 0:00:12.5]} 20... Bh3
{[%clk 0:01:00.5]} 21. Rf2 {[%clk 0:00:10.4]} 21... Re7 {[%clk 0:00:59.5]} 22.
e3 {[%clk 0:00:09.9]} 22... Nxf3 {[%clk 0:00:52.5]} 23. Qxf3 {[%clk 0:00:10.4]}
23... Bg4 {[%clk 0:00:52.3]} 24. Qg2 {[%clk 0:00:10.5]} 24... Qh5 {[%clk
0:00:49.6]} 25. Nd6 {[%clk 0:00:08.4]} 25... Rd7 {[%clk 0:00:42.1]} 26. Nf5
{[%clk 0:00:07.3]} 26... Rxd3 {[%clk 0:00:36.8]} 27. Ne7+ {[%clk 0:00:07]} 27...
Kh8 {[%clk 0:00:35.3]} 28. Qf1 {[%clk 0:00:07]} 28... Rxe3 {[%clk 0:00:27]} 29.
Rc3 {[%clk 0:00:07.1]} 29... Rxe4 {[%clk 0:00:23.7]} 30. Rc4 {[%clk 0:00:03.6]}
30... Rxc4 {[%clk 0:00:12.5]} 31. Qxc4 {[%clk 0:00:04.5]} 31... Be6 {[%clk
0:00:12.8]} 32. Qf1 {[%clk 0:00:04.1]} 32... h6 {[%clk 0:00:10.5]} 33. Nf5
{[%clk 0:00:03.3]} 33... Qg4 {[%clk 0:00:07.7]} 34. Ne3 {[%clk 0:00:02.8]} 34...
Qe4+ {[%clk 0:00:07.1]} 35. Ng2 {[%clk 0:00:02.6]} 35... Kh7 {[%clk 0:00:07.1]}
36. Re2 {[%clk 0:00:02.5]} 36... Qd5 {[%clk 0:00:04.8]} 37. Qb1+ {[%clk
0:00:01.3]} 37... g6 {[%clk 0:00:03.9]} 38. Qe1 {[%clk 0:00:01.6]} 38... Rd8
{[%clk 0:00:03.6]} 39. Kg1 {[%clk 0:00:01.9]} 39... Qd4+ {[%clk 0:00:03.4]} 40.
Kh1 {[%clk 0:00:02.1]} 40... Rd5 {[%clk 0:00:03]} 41. Re4 {[%clk 0:00:02]} 41...
Qd1 {[%clk 0:00:02.4]} 42. Qxd1 {[%clk 0:00:01.3]} 42... Rxd1+ {[%clk
0:00:03.3]} 0-1

[Event "Early-Titled-Tuesday-Blitz-November-28-2023"]
[Site "Chess.com"]
[Date "2023.11.28"]
[Round "4"]
[White "ActorXu"]
[Black "Shuvalov"]
[Result "1-0"]
[WhiteElo "2836"]
[BlackElo "2574"]
[TimeControl "180+1"]
[EndTime "8:40:04 PST"]
[Termination "ActorXu won by resignation"]

1. e4 {[%clk 0:02:57.2]} 1... e6 {[%clk 0:02:59.5]} 2. d4 {[%clk 0:02:56.8]}
2... d5 {[%clk 0:03:00.1]} 3. e5 {[%clk 0:02:56.5]} 3... c5 {[%clk 0:03:00.2]}
4. c3 {[%clk 0:02:56.6]} 4... Nc6 {[%clk 0:03:00.9]} 5. Nf3 {[%clk 0:02:56.5]}
5... Qb6 {[%clk 0:03:01.4]} 6. a3 {[%clk 0:02:54.9]} 6... Bd7 {[%clk 0:03:00.5]}
7. b4 {[%clk 0:02:51.5]} 7... cxd4 {[%clk 0:03:00.5]} 8. cxd4 {[%clk 0:02:50.9]}
8... Rc8 {[%clk 0:03:00.3]} 9. Bb2 {[%clk 0:02:46.1]} 9... Nge7 {[%clk
0:02:59.2]} 10. Nc3 {[%clk 0:02:44.2]} 10... Na5 {[%clk 0:02:58.6]} 11. Na4
{[%clk 0:02:39]} 11... Qc6 {[%clk 0:02:54.5]} 12. Nc5 {[%clk 0:02:39]} 12... Nc4
{[%clk 0:02:54.3]} 13. Bc3 {[%clk 0:02:28.7]} 13... b6 {[%clk 0:02:52]} 14. Nxd7
{[%clk 0:02:26.6]} 14... Qxd7 {[%clk 0:02:52.9]} 15. Bd3 {[%clk 0:02:24.7]}
15... b5 {[%clk 0:02:52.6]} 16. O-O {[%clk 0:02:22]} 16... h6 {[%clk 0:02:47.7]}
17. Qe2 {[%clk 0:02:19.1]} 17... Nc6 {[%clk 0:02:46.6]} 18. Nd2 {[%clk
0:02:13.5]} 18... a5 {[%clk 0:02:43.1]} 19. bxa5 {[%clk 0:02:08]} 19... Qa7
{[%clk 0:02:42.5]} 20. Nb3 {[%clk 0:02:03.8]} 20... Bxa3 {[%clk 0:02:17.7]} 21.
Bxc4 {[%clk 0:01:57.5]} 21... bxc4 {[%clk 0:02:17]} 22. Rxa3 {[%clk 0:01:58.1]}
22... cxb3 {[%clk 0:02:17.2]} 23. Rxb3 {[%clk 0:01:56.6]} 23... O-O {[%clk
0:02:11.7]} 24. Qd2 {[%clk 0:01:47]} 24... Rb8 {[%clk 0:02:09]} 25. Rfb1 {[%clk
0:01:46.1]} 25... Rxb3 {[%clk 0:02:08.1]} 26. Rxb3 {[%clk 0:01:46.4]} 26... Rb8
{[%clk 0:02:07.9]} 27. Rxb8+ {[%clk 0:01:46.1]} 27... Qxb8 {[%clk 0:02:08.8]}
28. Qa2 {[%clk 0:01:30]} 28... Qa7 {[%clk 0:01:53.9]} 29. Qa4 {[%clk 0:01:21.1]}
29... Qa6 {[%clk 0:01:53.6]} 30. h3 {[%clk 0:01:19.3]} 30... Kh7 {[%clk
0:01:41.5]} 31. Kh2 {[%clk 0:01:18.1]} 31... h5 {[%clk 0:01:38.3]} 32. Qc2+
{[%clk 0:01:16.7]} 32... Kg8 {[%clk 0:01:36]} 33. Qa4 {[%clk 0:01:08.9]} 33...
Kh7 {[%clk 0:01:35.2]} 34. Qa3 {[%clk 0:01:00.5]} 34... Na7 {[%clk 0:01:19.8]}
35. Qc5 {[%clk 0:00:56.6]} 35... Nc8 {[%clk 0:01:06.6]} 36. Bd2 {[%clk
0:00:46.4]} 36... Kg6 {[%clk 0:01:05.1]} 37. Qc2+ {[%clk 0:00:45.7]} 37... f5
{[%clk 0:01:01.9]} 38. exf6+ {[%clk 0:00:43.1]} 38... Kxf6 {[%clk 0:01:02.8]}
39. h4 {[%clk 0:00:43.7]} 39... g6 {[%clk 0:00:59.4]} 40. Bg5+ {[%clk
0:00:44.1]} 40... Kf7 {[%clk 0:00:59.8]} 41. Qc7+ {[%clk 0:00:44.2]} 41... Ke8
{[%clk 0:00:57.6]} 42. Qd8+ {[%clk 0:00:43.5]} 42... Kf7 {[%clk 0:00:57.7]} 43.
Qd7+ {[%clk 0:00:40.9]} 43... Kg8 {[%clk 0:00:48.7]} 44. Bf6 {[%clk 0:00:31.3]}
44... Qd6+ {[%clk 0:00:47.5]} 45. Qxd6 {[%clk 0:00:31.6]} 45... Nxd6 {[%clk
0:00:48.4]} 46. a6 {[%clk 0:00:32.2]} 46... Nb5 {[%clk 0:00:48]} 47. Be7 {[%clk
0:00:31]} 47... Nc7 {[%clk 0:00:41.8]} 48. a7 {[%clk 0:00:30.6]} 48... Kf7
{[%clk 0:00:41.3]} 49. Bd6 {[%clk 0:00:29.4]} 49... Na8 {[%clk 0:00:41.5]} 50.
Kg3 {[%clk 0:00:29.6]} 50... Kf6 {[%clk 0:00:40.8]} 51. Kf4 {[%clk 0:00:29.8]}
51... Nb6 {[%clk 0:00:40.2]} 52. Be5+ {[%clk 0:00:30.1]} 52... Kf7 {[%clk
0:00:39.8]} 53. Kg5 {[%clk 0:00:30.3]} 53... Na8 {[%clk 0:00:37.9]} 54. f3
{[%clk 0:00:30.2]} 54... Nb6 {[%clk 0:00:37.6]} 55. Bc7 {[%clk 0:00:30.4]} 55...
Na8 {[%clk 0:00:37.3]} 56. Bd8 {[%clk 0:00:30.7]} 56... Ke8 {[%clk 0:00:36.2]}
57. Ba5 {[%clk 0:00:30.6]} 57... Kf7 {[%clk 0:00:36.3]} 58. g3 {[%clk
0:00:26.6]} 58... Kg7 {[%clk 0:00:36.2]} 59. Bd8 {[%clk 0:00:25.4]} 59... Kf7
{[%clk 0:00:34.9]} 60. Kf4 {[%clk 0:00:22]} 60... Ke8 {[%clk 0:00:34.2]} 61. Ba5
{[%clk 0:00:21.9]} 61... Kf7 {[%clk 0:00:33.6]} 62. Ke5 {[%clk 0:00:22]} 62...
g5 {[%clk 0:00:24.9]} 63. hxg5 {[%clk 0:00:21.8]} 63... Kg6 {[%clk 0:00:25.5]}
64. Kxe6 {[%clk 0:00:21.8]} 64... Kxg5 {[%clk 0:00:25.6]} 65. Kxd5 {[%clk
0:00:22]} 65... Kf5 {[%clk 0:00:26]} 66. Kc6 {[%clk 0:00:22.3]} 66... h4 {[%clk
0:00:25]} 67. gxh4 {[%clk 0:00:21.8]} 67... Kf4 {[%clk 0:00:25.5]} 68. d5 {[%clk
0:00:21.7]} 68... Kxf3 {[%clk 0:00:25.8]} 69. d6 {[%clk 0:00:22.4]} 1-0

[Event "Early-Titled-Tuesday-Blitz-November-28-2023"]
[Site "Chess.com"]
[Date "2023.11.28"]
[Round "4"]
[White "GoltsevDmitry2000"]
[Black "ElDivis"]
[Result "0-1"]
[WhiteElo "2668"]
[BlackElo "2489"]
[TimeControl "180+1"]
[EndTime "8:40:06 PST"]
[Termination "ElDivis won by resignation"]

1. e4 {[%clk 0:01:30.7]} 1... c5 {[%clk 0:02:59.8]} 2. Nf3 {[%clk 0:01:30.7]}
2... d6 {[%clk 0:03:00.4]} 3. d4 {[%clk 0:01:31.2]} 3... cxd4 {[%clk 0:03:01.3]}
4. Nxd4 {[%clk 0:01:31.9]} 4... Nf6 {[%clk 0:03:02]} 5. Nc3 {[%clk 0:01:32.4]}
5... g6 {[%clk 0:03:02.8]} 6. Be2 {[%clk 0:01:32.8]} 6... Bg7 {[%clk 0:03:02.2]}
7. O-O {[%clk 0:01:33.1]} 7... O-O {[%clk 0:03:02.9]} 8. Be3 {[%clk 0:01:33.4]}
8... Nc6 {[%clk 0:03:03.5]} 9. f4 {[%clk 0:01:33.7]} 9... Qb6 {[%clk 0:03:03.2]}
10. Na4 {[%clk 0:01:32.8]} 10... Qa5 {[%clk 0:02:57.4]} 11. Nc3 {[%clk
0:01:33.1]} 11... Qb6 {[%clk 0:02:56.6]} 12. Na4 {[%clk 0:01:31.1]} 12... Qa5
{[%clk 0:02:53.9]} 13. Nc3 {[%clk 0:01:31.3]} 13... Nxd4 {[%clk 0:02:50]} 14.
Bxd4 {[%clk 0:01:29.2]} 14... Be6 {[%clk 0:02:50.9]} 15. Bf3 {[%clk 0:01:27.5]}
15... Rfd8 {[%clk 0:02:43.8]} 16. Re1 {[%clk 0:01:27.4]} 16... Rac8 {[%clk
0:02:42.1]} 17. Qd3 {[%clk 0:01:27.3]} 17... Bc4 {[%clk 0:02:40.8]} 18. Qe3
{[%clk 0:01:27.7]} 18... b6 {[%clk 0:02:24.6]} 19. e5 {[%clk 0:01:27.4]} 19...
dxe5 {[%clk 0:02:24.2]} 20. fxe5 {[%clk 0:01:28.3]} 20... Ne8 {[%clk 0:02:11.8]}
21. Rad1 {[%clk 0:01:24.7]} 21... Nc7 {[%clk 0:02:05.3]} 22. a3 {[%clk
0:01:17.5]} 22... Ne6 {[%clk 0:02:00.8]} 23. Qf2 {[%clk 0:01:12.6]} 23... Nxd4
{[%clk 0:01:49.4]} 24. Rxd4 {[%clk 0:01:13.5]} 24... Bxe5 {[%clk 0:00:56.2]} 25.
Rxd8+ {[%clk 0:01:11.9]} 25... Rxd8 {[%clk 0:00:56]} 26. Kh1 {[%clk 0:00:12]}
26... Bxc3 {[%clk 0:00:44.7]} 27. bxc3 {[%clk 0:00:12.9]} 27... Qxa3 {[%clk
0:00:39.9]} 28. h4 {[%clk 0:00:12.6]} 28... e6 {[%clk 0:00:32.2]} 29. h5 {[%clk
0:00:12.7]} 29... Qxc3 {[%clk 0:00:31.2]} 30. h6 {[%clk 0:00:11.2]} 30... Qd4
{[%clk 0:00:17.9]} 31. Qg3 {[%clk 0:00:11.2]} 31... Qf6 {[%clk 0:00:13.5]} 32.
Be4 {[%clk 0:00:07]} 32... a5 {[%clk 0:00:10.2]} 33. Re3 {[%clk 0:00:05.5]}
33... b5 {[%clk 0:00:08.8]} 34. Rf3 {[%clk 0:00:06]} 34... Qa1+ {[%clk
0:00:07.9]} 35. Kh2 {[%clk 0:00:05]} 35... Qd4 {[%clk 0:00:06.7]} 36. Qc7 {[%clk
0:00:04.3]} 36... Qd6+ {[%clk 0:00:06.5]} 37. Qxd6 {[%clk 0:00:03.7]} 37... Rxd6
{[%clk 0:00:07.4]} 38. Rc3 {[%clk 0:00:03.3]} 38... a4 {[%clk 0:00:07.2]} 39.
Bd3 {[%clk 0:00:03.6]} 39... Rc6 {[%clk 0:00:07.4]} 40. Be4 {[%clk 0:00:03.7]}
40... Rc8 {[%clk 0:00:07.6]} 41. Bf3 {[%clk 0:00:03.1]} 41... Rb8 {[%clk
0:00:07.6]} 42. Re3 {[%clk 0:00:03.6]} 42... Kf8 {[%clk 0:00:08]} 43. Bc6 {[%clk
0:00:03.9]} 43... Ke7 {[%clk 0:00:08.3]} 44. Rf3 {[%clk 0:00:04.4]} 44... Rb6
{[%clk 0:00:08.6]} 45. Be4 {[%clk 0:00:04.8]} 45... Rd6 {[%clk 0:00:09]} 46. c3
{[%clk 0:00:04.6]} 46... Rd2 {[%clk 0:00:09]} 47. Bb1 {[%clk 0:00:04.6]} 47...
a3 {[%clk 0:00:09.1]} 48. Re3 {[%clk 0:00:03.9]} 48... a2 {[%clk 0:00:09.7]} 49.
Bxa2 {[%clk 0:00:04.4]} 49... Bxa2 {[%clk 0:00:10.6]} 50. Rg3 {[%clk 0:00:05.3]}
50... Bd5 {[%clk 0:00:11.1]} 51. Re3 {[%clk 0:00:05.7]} 51... Rxg2+ {[%clk
0:00:10.7]} 52. Kh3 {[%clk 0:00:06.6]} 52... Rd2 {[%clk 0:00:11.5]} 53. Rg3
{[%clk 0:00:06.4]} 53... Bc4 {[%clk 0:00:11.8]} 54. Rg4 {[%clk 0:00:06.6]} 54...
Rd3+ {[%clk 0:00:12.1]} 55. Kh2 {[%clk 0:00:05.9]} 55... Rxc3 {[%clk 0:00:12.5]}
56. Rf4 {[%clk 0:00:06.7]} 56... Rc2+ {[%clk 0:00:12.7]} 57. Kh1 {[%clk
0:00:07.1]} 57... Rd2 {[%clk 0:00:13]} 58. Rd4 {[%clk 0:00:06.4]} 58... Rxd4
{[%clk 0:00:12.4]} 0-1

[Event "Early-Titled-Tuesday-Blitz-November-28-2023"]
[Site "Chess.com"]
[Date "2023.11.28"]
[Round "4"]
[White "nitpicker"]
[Black "JuniorJumper"]
[Result "0-1"]
[WhiteElo "2317"]
[BlackElo "2554"]
[TimeControl "180+1"]
[EndTime "8:40:08 PST"]
[Termination "JuniorJumper won on time"]

1. d4 {[%clk 0:03:00.9]} 1... Nf6 {[%clk 0:02:58]} 2. c4 {[%clk 0:03:01]} 2...
e6 {[%clk 0:02:58.1]} 3. g3 {[%clk 0:03:00.8]} 3... Bb4+ {[%clk 0:02:56.5]} 4.
Bd2 {[%clk 0:03:00.2]} 4... Bxd2+ {[%clk 0:02:56.2]} 5. Qxd2 {[%clk 0:02:59]}
5... d5 {[%clk 0:02:57.1]} 6. Bg2 {[%clk 0:02:57.6]} 6... O-O {[%clk 0:02:57.3]}
7. Nf3 {[%clk 0:02:55.5]} 7... b6 {[%clk 0:02:55.8]} 8. cxd5 {[%clk 0:02:52.2]}
8... exd5 {[%clk 0:02:45.8]} 9. Nc3 {[%clk 0:02:51.5]} 9... c6 {[%clk
0:02:31.8]} 10. O-O {[%clk 0:02:51.3]} 10... Nbd7 {[%clk 0:02:06.1]} 11. Rfd1
{[%clk 0:02:48.4]} 11... Re8 {[%clk 0:02:05.8]} 12. e3 {[%clk 0:02:44.8]} 12...
Ba6 {[%clk 0:01:57]} 13. b4 {[%clk 0:02:42.3]} 13... Ne4 {[%clk 0:01:55.2]} 14.
Nxe4 {[%clk 0:02:39.7]} 14... dxe4 {[%clk 0:01:55.1]} 15. Ne1 {[%clk 0:02:36.4]}
15... Nf6 {[%clk 0:01:53.6]} 16. Rac1 {[%clk 0:02:33]} 16... Bb5 {[%clk
0:01:46.6]} 17. Qc2 {[%clk 0:02:31.2]} 17... Rc8 {[%clk 0:01:20.9]} 18. a4
{[%clk 0:02:28]} 18... Ba6 {[%clk 0:01:21.2]} 19. Qb3 {[%clk 0:02:21.8]} 19...
Qd5 {[%clk 0:01:19.2]} 20. Rc3 {[%clk 0:02:19.8]} 20... h5 {[%clk 0:00:47.3]}
21. Rdc1 {[%clk 0:02:15.2]} 21... g6 {[%clk 0:00:35.6]} 22. h3 {[%clk 0:02:03]}
22... Kg7 {[%clk 0:00:34.9]} 23. Qxd5 {[%clk 0:01:52.7]} 23... cxd5 {[%clk
0:00:34.2]} 24. b5 {[%clk 0:01:50.4]} 24... Bb7 {[%clk 0:00:33.5]} 25. Rc7
{[%clk 0:01:45.3]} 25... Red8 {[%clk 0:00:15.4]} 26. R1c2 {[%clk 0:01:40.5]}
26... Rxc7 {[%clk 0:00:13.1]} 27. Rxc7 {[%clk 0:01:39.5]} 27... Rd7 {[%clk
0:00:14]} 28. Rxd7 {[%clk 0:01:38.1]} 28... Nxd7 {[%clk 0:00:14.9]} 29. Nc2
{[%clk 0:01:36.8]} 29... Kf8 {[%clk 0:00:11.3]} 30. Nb4 {[%clk 0:01:35.6]} 30...
Ke7 {[%clk 0:00:11.8]} 31. g4 {[%clk 0:01:28]} 31... h4 {[%clk 0:00:11.1]} 32.
f3 {[%clk 0:01:25.9]} 32... f5 {[%clk 0:00:09.3]} 33. gxf5 {[%clk 0:01:20.9]}
33... gxf5 {[%clk 0:00:09.2]} 34. fxe4 {[%clk 0:01:21.1]} 34... fxe4 {[%clk
0:00:07.6]} 35. Bf1 {[%clk 0:01:14.3]} 35... Kd6 {[%clk 0:00:07.8]} 36. Be2
{[%clk 0:01:11.8]} 36... Nb8 {[%clk 0:00:03.5]} 37. Bg4 {[%clk 0:01:07.7]} 37...
a5 {[%clk 0:00:03.7]} 38. Nc2 {[%clk 0:01:05.8]} 38... Nd7 {[%clk 0:00:03]} 39.
Kf2 {[%clk 0:00:55.7]} 39... Nf6 {[%clk 0:00:02.6]} 40. Be2 {[%clk 0:00:55]}
40... Bc8 {[%clk 0:00:02.5]} 41. Kg2 {[%clk 0:00:51]} 41... Bd7 {[%clk
0:00:03.1]} 42. Ne1 {[%clk 0:00:46.9]} 42... Nh7 {[%clk 0:00:03.4]} 43. Bg4
{[%clk 0:00:31.7]} 43... Bxg4 {[%clk 0:00:02.8]} 44. hxg4 {[%clk 0:00:31.6]}
44... Ng5 {[%clk 0:00:03.7]} 45. Kh2 {[%clk 0:00:26.7]} 45... Nf3+ {[%clk
0:00:02.7]} 46. Nxf3 {[%clk 0:00:18.2]} 46... exf3 {[%clk 0:00:03.6]} 47. Kh3
{[%clk 0:00:17]} 47... Ke6 {[%clk 0:00:04.2]} 48. Kh2 {[%clk 0:00:09]} 48... Kf6
{[%clk 0:00:04.6]} 49. Kh3 {[%clk 0:00:09.2]} 49... Kg5 {[%clk 0:00:04.6]} 50.
e4 {[%clk 0:00:09.4]} 50... dxe4 {[%clk 0:00:05.1]} 51. d5 {[%clk 0:00:10]}
51... e3 {[%clk 0:00:04.4]} 52. d6 {[%clk 0:00:09.6]} 52... f2 {[%clk
0:00:04.6]} 53. Kg2 {[%clk 0:00:08.5]} 53... h3+ {[%clk 0:00:05.2]} 54. Kf1
{[%clk 0:00:05]} 54... h2 {[%clk 0:00:05.9]} 0-1

[Event "Early-Titled-Tuesday-Blitz-November-28-2023"]
[Site "Chess.com"]
[Date "2023.11.28"]
[Round "4"]
[White "EvgenyBurmakin"]
[Black "LouieKov2022"]
[Result "1-0"]
[WhiteElo "2408"]
[BlackElo "2587"]
[TimeControl "180+1"]
[EndTime "8:40:08 PST"]
[Termination "EvgenyBurmakin won on time"]

1. e4 {[%clk 0:03:00.9]} 1... c5 {[%clk 0:03:00.1]} 2. Nc3 {[%clk 0:03:00.5]}
2... d6 {[%clk 0:03:00.4]} 3. Nf3 {[%clk 0:02:59.8]} 3... Nf6 {[%clk 0:03:00]}
4. d4 {[%clk 0:03:00.2]} 4... cxd4 {[%clk 0:03:00.4]} 5. Nxd4 {[%clk 0:03:01.1]}
5... a6 {[%clk 0:03:01.1]} 6. Be3 {[%clk 0:03:00.3]} 6... e5 {[%clk 0:03:00]} 7.
Nb3 {[%clk 0:02:59.1]} 7... Be7 {[%clk 0:02:59.1]} 8. f3 {[%clk 0:02:59.4]} 8...
Be6 {[%clk 0:02:57.2]} 9. Qd2 {[%clk 0:02:59.6]} 9... h5 {[%clk 0:02:56.7]} 10.
O-O-O {[%clk 0:02:58.6]} 10... Nbd7 {[%clk 0:02:54.6]} 11. Kb1 {[%clk
0:02:49.9]} 11... Rc8 {[%clk 0:02:54.4]} 12. Nd5 {[%clk 0:02:43.6]} 12... Nxd5
{[%clk 0:02:38]} 13. exd5 {[%clk 0:02:44.5]} 13... Bf5 {[%clk 0:02:37.9]} 14.
Bd3 {[%clk 0:02:37.2]} 14... Bxd3 {[%clk 0:02:37.9]} 15. Qxd3 {[%clk 0:02:38.1]}
15... Bg5 {[%clk 0:02:38.8]} 16. Rhe1 {[%clk 0:02:32.1]} 16... O-O {[%clk
0:02:37.9]} 17. g4 {[%clk 0:02:05.1]} 17... hxg4 {[%clk 0:02:21.3]} 18. fxg4
{[%clk 0:02:06]} 18... Nb6 {[%clk 0:01:47.3]} 19. Na5 {[%clk 0:01:47]} 19...
Bxe3 {[%clk 0:01:37.2]} 20. Rxe3 {[%clk 0:01:47.9]} 20... Qc7 {[%clk 0:01:14.9]}
21. Rh3 {[%clk 0:01:02.8]} 21... g6 {[%clk 0:01:12]} 22. Nb3 {[%clk 0:00:56.6]}
22... Kg7 {[%clk 0:00:45.6]} 23. Rf1 {[%clk 0:00:42.6]} 23... Qc4 {[%clk
0:00:44]} 24. Qxc4 {[%clk 0:00:37.4]} 24... Rxc4 {[%clk 0:00:44.9]} 25. g5
{[%clk 0:00:29.8]} 25... Rg4 {[%clk 0:00:20.9]} 26. Na5 {[%clk 0:00:19.1]} 26...
Rb8 {[%clk 0:00:18.1]} 27. Rb3 {[%clk 0:00:17.6]} 27... Nxd5 {[%clk 0:00:17.6]}
28. Nxb7 {[%clk 0:00:15]} 28... Rxg5 {[%clk 0:00:15.8]} 29. Nxd6 {[%clk
0:00:14.4]} 29... Rxb3 {[%clk 0:00:16.7]} 30. Rxf7+ {[%clk 0:00:13.8]} 30... Kg8
{[%clk 0:00:16.9]} 31. axb3 {[%clk 0:00:14.3]} 31... Rg1+ {[%clk 0:00:15.8]} 32.
Ka2 {[%clk 0:00:14.4]} 32... Ne3 {[%clk 0:00:16.7]} 33. Ra7 {[%clk 0:00:12.7]}
33... Nxc2 {[%clk 0:00:16.8]} 34. b4 {[%clk 0:00:12.5]} 34... Nxb4+ {[%clk
0:00:16.9]} 35. Kb3 {[%clk 0:00:12.7]} 35... Nc6 {[%clk 0:00:15]} 36. Rxa6
{[%clk 0:00:12.3]} 36... Nd4+ {[%clk 0:00:15.3]} 37. Kc4 {[%clk 0:00:12.2]}
37... Rg2 {[%clk 0:00:15.3]} 38. b4 {[%clk 0:00:12]} 38... Rxh2 {[%clk
0:00:15.2]} 39. Kd5 {[%clk 0:00:11.6]} 39... Re2 {[%clk 0:00:15]} 40. Nc4 {[%clk
0:00:08.1]} 40... g5 {[%clk 0:00:14.3]} 41. Nxe5 {[%clk 0:00:08.2]} 41... Nf5
{[%clk 0:00:07.7]} 42. Rg6+ {[%clk 0:00:07.6]} 42... Kf8 {[%clk 0:00:08.3]} 43.
Rxg5 {[%clk 0:00:08]} 43... Ne7+ {[%clk 0:00:08]} 44. Ke6 {[%clk 0:00:07.4]}
44... Rb2 {[%clk 0:00:07]} 45. Rg4 {[%clk 0:00:07.1]} 45... Ke8 {[%clk
0:00:05.2]} 46. Rh4 {[%clk 0:00:06.2]} 46... Kf8 {[%clk 0:00:04.8]} 47. Nd7+
{[%clk 0:00:05.4]} 47... Kg7 {[%clk 0:00:02.9]} 48. Rg4+ {[%clk 0:00:05.9]}
48... Ng6 {[%clk 0:00:02.7]} 49. Ne5 {[%clk 0:00:06.1]} 49... Kh6 {[%clk
0:00:01.3]} 50. Rxg6+ {[%clk 0:00:06]} 50... Kh5 {[%clk 0:00:01.5]} 51. Rg4
{[%clk 0:00:06.9]} 1-0